fUST/lending_fUST_20250601
["ID","MTS","AMOUNT","RATE_DAILY","PERIOD"]
[363407473,1748718637575,-961.09,0.0001726,2]
[363407475,1748718637585,-1321.05,0.0001726,2]
[363407477,1748718637594,-431.94,0.0001726,2]
[363407479,1748718637603,-1120.51,0.0001726,2]
[363407481,1748718637614,-430.0,0.0001726,2]
[363407483,1748718637623,-430.0,0.0001726,2]
[363407485,1748718637633,-545.2,0.0001726,2]
[363407487,1748718637642,-755.97,0.0001726,2]
[363407489,1748718637653,-518.04,0.0001726,2]
[363407491,1748718637663,-430.0,0.0001726,2]
[363407493,1748718637673,-637.89,0.0001726,2]
[363407494,1748718637683,-430.0,0.0001726,2]
[363407496,1748718637692,-243.21,0.0001726,2]
[363407498,1748718637701,-603.01,0.0001726,2]
[363407500,1748718637711,-1012.01,0.0001726,2]
[363407502,1748718637721,-430.0,0.0001726,2]
[363407504,1748718637731,-430.0,0.0001726,2]
[363407506,1748718637741,-929.8,0.0001726,2]
[363407508,1748718637750,-1036.14,0.0001726,2]
[363407510,1748718637760,-430.0,0.0001726,2]
[363407512,1748718637770,-667.7,0.0001726,2]
[363407514,1748718637779,-846.71,0.0001726,2]
[363407516,1748718637788,-430.0,0.0001726,2]
[363407517,1748718637797,-448.81,0.0001726,2]
[363407520,1748718637808,-430.0,0.0001726,2]
[363407522,1748718637818,-430.0,0.0001726,2]
[363407523,1748718637827,-421.76,0.0001726,2]
[363407525,1748718637836,-160.7,0.0001726,2]
[363407527,1748718637846,-743.69,0.0001726,2]
[363407528,1748718637855,-430.0,0.0001726,2]
[363407529,1748718637865,-430.0,0.0001726,2]
[363407530,1748718637874,-570.18,0.0001726,2]
[363407531,1748718637884,-430.0,0.0001726,2]
[363407532,1748718637893,-430.0,0.0001726,2]
[363407533,1748718637904,-430.0,0.0001726,2]
[363407534,1748718637913,-161.54047028,0.00017305,2]
[363407535,1748718637925,-1290.05233649,0.00017452,2]
[363407536,1748718637935,-430.0,0.00017534,2]
[363407537,1748718637945,-430.0,0.00017534,2]
[363407538,1748718637954,-563.8,0.00017534,2]
[363407539,1748718637964,-961.09,0.00017534,2]
[363407540,1748718637973,-1321.05,0.00017534,2]
[363407541,1748718637983,-431.94,0.00017534,2]
[363407542,1748718637992,-1120.51,0.00017534,2]
[363407543,1748718638002,-430.0,0.00017534,2]
[363407544,1748718638011,-430.0,0.00017534,2]
[363407545,1748718638021,-545.2,0.00017534,2]
[363407546,1748718638030,-755.97,0.00017534,2]
[363407547,1748718638039,-518.04,0.00017534,2]
[363407548,1748718638049,-430.0,0.00017534,2]
[363407549,1748718638058,-637.89,0.00017534,2]
[363407550,1748718638067,-430.0,0.00017534,2]
[363407551,1748718638077,-603.01,0.00017534,2]
[363407552,1748718638087,-1012.01,0.00017534,2]
[363407553,1748718638096,-430.0,0.00017534,2]
[363407554,1748718638105,-324.67,0.00017534,2]
[363407555,1748718638115,-929.8,0.00017534,2]
[363407556,1748718638124,-1036.14,0.00017534,2]
[363407557,1748718638134,-430.0,0.00017534,2]
[363407558,1748718638143,-667.7,0.00017534,2]
[363407559,1748718638152,-846.71,0.00017534,2]
[363407561,1748718638161,-430.0,0.00017534,2]
[363407562,1748718638172,-448.81,0.00017534,2]
[363407563,1748718638182,-430.0,0.00017534,2]
[363407564,1748718638191,-430.0,0.00017534,2]
[363407565,1748718638201,-743.69,0.00017534,2]
[363407566,1748718638211,-430.0,0.00017534,2]
[363407567,1748718638220,-430.0,0.00017534,2]
[363407568,1748718638230,-570.18,0.00017534,2]
[363407569,1748718638239,-565.01,0.00017534,2]
[363407570,1748718638249,-176.68,0.00017534,2]
[363407571,1748718638259,-430.0,0.00017534,2]
[363407572,1748718638268,-1290.05233649,0.00017728,2]
[363407573,1748718638278,-430.0,0.00017808,2]
[363407574,1748718638288,-434.44,0.00017808,2]
[363407577,1748718638300,-563.8,0.00017808,2]
[363407578,1748718638309,-961.09,0.00017808,2]
[363407580,1748718638319,-1321.05,0.00017808,2]
[363407582,1748718638328,-431.94,0.00017808,2]
[363407584,1748718638337,-1120.51,0.00017808,2]
[363407586,1748718638347,-430.0,0.00017808,2]
[363407587,1748718638358,-430.0,0.00017808,2]
[363407588,1748718638367,-545.2,0.00017808,2]
[363407589,1748718638377,-755.97,0.00017808,2]
[363407590,1748718638386,-518.04,0.00017808,2]
[363407591,1748718638395,-430.0,0.00017808,2]
[363407592,1748718638404,-637.89,0.00017808,2]
[363407593,1748718638413,-430.0,0.00017808,2]
[363407594,1748718638424,-603.01,0.00017808,2]
[363407595,1748718638434,-1012.01,0.00017808,2]
[363407596,1748718638444,-263.52,0.00017808,2]
[363407597,1748718638453,-929.8,0.00017808,2]
[363407598,1748718638463,-1036.14,0.00017808,2]
[363407599,1748718638473,-430.0,0.00017808,2]
[363407600,1748718638483,-667.7,0.00017808,2]
[363407601,1748718638493,-846.71,0.00017808,2]
[363407602,1748718638502,-158.56,0.00017808,2]
[363407603,1748718638512,-448.81,0.00017808,2]
[363407604,1748718638522,-430.0,0.00017808,2]
[363407605,1748718638531,-174.48,0.00017808,2]
[363407606,1748718638541,-743.69,0.00017808,2]
[363407607,1748718638550,-430.0,0.00017808,2]
[363407608,1748718638559,-430.0,0.00017808,2]
[363407609,1748718638571,-570.18,0.00017808,2]
[363407610,1748718638583,-430.0,0.00017808,2]
[363407611,1748718638593,-1127.32252456,0.00017845,2]
[363407612,1748718638602,-423.4608169,0.00017873,2]
[363407613,1748718638613,-842.5625,0.00017873,2]
[363407614,1748718638623,-160.0,0.00017873,2]
[363407615,1748718638631,-160.0,0.00017873,2]
[363407616,1748718638641,-212.77096907,0.00017873,2]
[363407617,1748718638652,-229.3428821,0.00017873,2]
[363407618,1748718638662,-1290.05233649,0.00018003,2]
[363407619,1748718638673,-430.0,0.00018082,2]
[363407620,1748718638683,-563.8,0.00018082,2]
[363407621,1748718638693,-961.09,0.00018082,2]
[363407622,1748718638702,-1321.05,0.00018082,2]
[363407623,1748718638712,-431.94,0.00018082,2]
[363407624,1748718638722,-1120.51,0.00018082,2]
[363407625,1748718638731,-430.0,0.00018082,2]
[363407626,1748718638741,-430.0,0.00018082,2]
[363407627,1748718638750,-545.2,0.00018082,2]
[363407628,1748718638760,-755.97,0.00018082,2]
[363407629,1748718638770,-518.04,0.00018082,2]
[363407630,1748718638780,-430.0,0.00018082,2]
[363407631,1748718638790,-637.89,0.00018082,2]
[363407632,1748718638799,-430.0,0.00018082,2]
[363407633,1748718638809,-603.01,0.00018082,2]
[363407634,1748718638819,-1012.01,0.00018082,2]
[363407635,1748718638828,-929.8,0.00018082,2]
[363407636,1748718638838,-1036.14,0.00018082,2]
[363407637,1748718638848,-430.0,0.00018082,2]
[363407638,1748718638858,-667.7,0.00018082,2]
[363407639,1748718638868,-846.71,0.00018082,2]
[363407640,1748718638878,-448.81,0.00018082,2]
[363407641,1748718638887,-430.0,0.00018082,2]
[363407642,1748718638897,-743.69,0.00018082,2]
[363407643,1748718638907,-430.0,0.00018082,2]
[363407644,1748718638917,-364.58,0.00018082,2]
[363407645,1748718638927,-570.18,0.00018082,2]
[363407646,1748718638937,-430.0,0.00018082,2]
[363407647,1748718638946,-1290.05233649,0.00018279,2]
[363407648,1748718638956,-430.0,0.00018356,2]
[363407649,1748718638966,-563.8,0.00018356,2]
[363407651,1748718638975,-961.09,0.00018356,2]
[363407653,1748718638984,-1321.05,0.00018356,2]
[363407655,1748718638994,-431.94,0.00018356,2]
[363407657,1748718639004,-1120.51,0.00018356,2]
[363407659,1748718639014,-430.0,0.00018356,2]
[363407661,1748718639024,-430.0,0.00018356,2]
[363407663,1748718639034,-545.2,0.00018356,2]
[363407665,1748718639043,-755.97,0.00018356,2]
[363407667,1748718639053,-518.04,0.00018356,2]
[363407669,1748718639062,-430.0,0.00018356,2]
[363407671,1748718639072,-637.89,0.00018356,2]
[363407673,1748718639082,-430.0,0.00018356,2]
[363407675,1748718639092,-603.01,0.00018356,2]
[363407677,1748718639101,-1012.01,0.00018356,2]
[363407679,1748718639111,-929.8,0.00018356,2]
[363407681,1748718639120,-1036.14,0.00018356,2]
[363407683,1748718639130,-430.0,0.00018356,2]
[363407685,1748718639139,-667.7,0.00018356,2]
[363407687,1748718639149,-846.71,0.00018356,2]
[363407689,1748718639159,-448.81,0.00018356,2]
[363407691,1748718639169,-430.0,0.00018356,2]
[363407693,1748718639179,-743.69,0.00018356,2]
[363407695,1748718639188,-430.0,0.00018356,2]
[363407697,1748718639198,-570.18,0.00018356,2]
[363407699,1748718639207,-430.0,0.00018356,2]
[363407701,1748718639217,-1290.05233649,0.00018555,2]
[363407703,1748718639227,-430.0,0.0001863,2]
[363407705,1748718639237,-563.8,0.0001863,2]
[363407707,1748718639246,-961.09,0.0001863,2]
[363407709,1748718639256,-1321.05,0.0001863,2]
[363407711,1748718639265,-431.94,0.0001863,2]
[363407713,1748718639275,-1120.51,0.0001863,2]
[363407715,1748718639287,-430.0,0.0001863,2]
[363407717,1748718639297,-430.0,0.0001863,2]
[363407719,1748718639306,-343.36254498,0.0001863,2]
[363408024,1748718643027,-280.4939083,0.00016438,2]
[363408158,1748718645861,260.88286219,6.8e-07,2]
[363408160,1748718646189,-149.5060917,0.00016438,2]
[363408161,1748718646199,-430.0,0.00016438,2]
[363408162,1748718646208,-123.7239083,0.00016438,2]
[363409244,1748718946521,157.39788139,6.8e-07,2]
[363409270,1748718998264,758.236465,0.00013699,2]
[363409310,1748719247303,157.39788139,6.8e-07,2]
[363409311,1748719247429,157.39788139,6.8e-07,2]
[363409321,1748719385386,2646.174464,0.00017,30]
[363409335,1748719595178,-153.23809883,0.00015488,2]
[363409343,1748719692606,411.77713436,0.00010618,2]
[363409397,1748719832193,-483.55958424,0.00015643,2]
[363409400,1748719832204,-300.0,0.00015801,2]
[363409401,1748719832214,-1724.67802311,0.00015802,2]
[363409404,1748719832248,-9240.95178829,0.00015802,2]
[363409405,1748719832257,-430.0,0.00016438,2]
[363409406,1748719832267,-507.37100855,0.00016438,2]
[363409407,1748719832276,-430.0,0.00016438,2]
[363409408,1748719832286,-450.0,0.00016438,2]
[363409409,1748719832295,-430.0,0.00016438,2]
[363409410,1748719832305,-430.0,0.00016438,2]
[363409411,1748719832315,-430.0,0.00016438,2]
[363409412,1748719832324,-430.0,0.00016438,2]
[363409414,1748719832334,-430.0,0.00016438,2]
[363409415,1748719832344,-430.0,0.00016438,2]
[363409417,1748719832353,-469.1,0.00016438,2]
[363409419,1748719832363,-430.0,0.00016438,2]
[363409421,1748719832373,-521.89612473,0.00016438,2]
[363409423,1748719832383,-430.0,0.00016438,2]
[363409425,1748719832393,-450.0,0.00016438,2]
[363409427,1748719832403,-430.0,0.00016438,2]
[363409429,1748719832412,-430.0,0.00016438,2]
[363409431,1748719832421,-430.0,0.00016438,2]
[363409433,1748719832430,-430.0,0.00016438,2]
[363409435,1748719832440,-430.0,0.00016438,2]
[363409437,1748719832449,-430.0,0.00016438,2]
[363409439,1748719832459,-430.0,0.00016438,2]
[363409441,1748719832468,-430.0,0.00016438,2]
[363409443,1748719832478,-200.0,0.00016438,2]
[363409445,1748719832488,-400.89997093,0.00016438,2]
[363409447,1748719832498,-430.0,0.00016438,2]
[363409449,1748719832507,-450.0,0.00016438,2]
[363409452,1748719832517,-430.0,0.00016438,2]
[363409454,1748719832527,-430.0,0.00016438,2]
[363409456,1748719832536,-430.0,0.00016438,2]
[363409458,1748719832545,-500.0,0.00016438,2]
[363409460,1748719832555,-152.89878652,0.00016438,2]
[363409461,1748719832564,-430.0,0.00016438,2]
[363409464,1748719832574,-351.19887758,0.00016438,2]
[363409466,1748719832583,-430.0,0.00016438,2]
[363409468,1748719832593,-430.0,0.00016438,2]
[363409470,1748719832602,-430.0,0.00016438,2]
[363409472,1748719832612,-400.0,0.00016438,2]
[363409474,1748719832621,-400.0,0.00016438,2]
[363409476,1748719832631,-400.0,0.00016438,2]
[363409478,1748719832641,-595.53,0.00016438,2]
[363409480,1748719832652,-682.41,0.00016438,2]
[363409482,1748719832662,-430.0,0.00016438,2]
[363409484,1748719832672,-430.0,0.00016438,2]
[363409486,1748719832681,-430.0,0.00016438,2]
[363409488,1748719832691,-430.0,0.00016438,2]
[363409490,1748719832700,-493.24934284,0.00016438,2]
[363409492,1748719832709,-430.0,0.00016438,2]
[363409494,1748719832719,-179.30493338,0.00016438,2]
[363409496,1748719832730,-503.98,0.00016438,2]
[363409498,1748719832740,-430.0,0.00016438,2]
[363409500,1748719832750,-430.0,0.00016438,2]
[363409502,1748719832760,-181.83062994,0.00016438,2]
[363409504,1748719832770,-430.0,0.00016438,2]
[363409506,1748719832779,-430.0,0.00016438,2]
[363409508,1748719832789,-481.63,0.00016438,2]
[363409510,1748719832799,-430.0,0.00016438,2]
[363409512,1748719832808,-430.0,0.00016438,2]
[363409514,1748719832818,-430.0,0.00016438,2]
[363409516,1748719832828,-430.0,0.00016438,2]
[363409518,1748719832837,-430.0,0.00016438,2]
[363409520,1748719832847,-430.0,0.00016438,2]
[363409522,1748719832857,-451.0,0.00016438,2]
[363409525,1748719832868,-430.0,0.00016438,2]
[363409526,1748719832878,-430.0,0.00016438,2]
[363409529,1748719832888,-452.22842123,0.00016438,2]
[363409531,1748719832899,-430.0,0.00016438,2]
[363409533,1748719832908,-430.0,0.00016438,2]
[363409535,1748719832919,-430.0,0.00016438,2]
[363409537,1748719832928,-96.06772491,0.00016438,2]
[363409539,1748719832942,-333.93227509,0.00016438,2]
[363409541,1748719832952,-674.67,0.00016438,2]
[363409543,1748719832961,-430.0,0.00016438,2]
[363409545,1748719832971,-211.64772491,0.00016438,2]
[363409548,1748719832984,-218.35227509,0.00016438,2]
[363409550,1748719832994,-551.68,0.00016438,2]
[363409552,1748719833003,-430.0,0.00016438,2]
[363409554,1748719833013,-430.0,0.00016438,2]
[363409556,1748719833023,-430.0,0.00016438,2]
[363409558,1748719833034,-430.0,0.00016438,2]
[363409560,1748719833043,-195.65086739,0.00016438,2]
[363409562,1748719833053,-445.14,0.00016438,2]
[363409564,1748719833062,-450.0,0.00016438,2]
[363409566,1748719833072,-430.0,0.00016438,2]
[363409568,1748719833082,-430.0,0.00016438,2]
[363409570,1748719833091,-430.0,0.00016438,2]
[363409572,1748719833101,-450.0,0.00016438,2]
[363409574,1748719833111,-430.0,0.00016438,2]
[363409576,1748719833124,-430.0,0.00016438,2]
[363409578,1748719833134,-430.0,0.00016438,2]
[363409580,1748719833143,-672.4,0.00016438,2]
[363409582,1748719833153,-500.0,0.00016438,2]
[363409584,1748719833163,-430.0,0.00016438,2]
[363409586,1748719833173,-430.0,0.00016438,2]
[363409588,1748719833182,-454.7468304,0.00016438,2]
[363409590,1748719833193,-430.0,0.00016438,2]
[363409592,1748719833204,-441.41,0.00016438,2]
[363409593,1748719833214,-557.32662168,0.00016438,2]
[363409596,1748719833227,-323.39337832,0.00016438,2]
[363409598,1748719833236,-430.0,0.00016438,2]
[363409600,1748719833246,-430.0,0.00016438,2]
[363409602,1748719833256,-430.0,0.00016438,2]
[363409604,1748719833266,-430.0,0.00016438,2]
[363409606,1748719833276,-430.0,0.00016438,2]
[363409608,1748719833285,-1040.2,0.00016438,2]
[363409610,1748719833295,-450.0,0.00016438,2]
[363409612,1748719833305,-430.0,0.00016438,2]
[363409614,1748719833314,-430.0,0.00016438,2]
[363409616,1748719833324,-450.0,0.00016438,2]
[363409618,1748719833334,-385.23465037,0.00016438,2]
[363409620,1748719833344,-385.56374583,0.00016438,2]
[363409622,1748719833355,-450.0,0.00016438,2]
[363409624,1748719833365,-430.0,0.00016438,2]
[363409626,1748719833375,-430.0,0.00016438,2]
[363409628,1748719833385,-430.0,0.00016438,2]
[363409630,1748719833395,-430.64807972,0.00016438,2]
[363409632,1748719833404,-430.0,0.00016438,2]
[363409634,1748719833414,-430.0,0.00016438,2]
[363409636,1748719833425,-430.0,0.00016438,2]
[363409638,1748719833434,-430.0,0.00016438,2]
[363409640,1748719833444,-430.0,0.00016438,2]
[363409642,1748719833454,-430.0,0.00016438,2]
[363409643,1748719833463,-430.0,0.00016438,2]
[363409645,1748719833474,-450.0,0.00016438,2]
[363409647,1748719833484,-430.0,0.00016438,2]
[363409648,1748719833494,-450.0,0.00016438,2]
[363409650,1748719833505,-430.0,0.00016438,2]
[363409652,1748719833516,-430.0,0.00016438,2]
[363409653,1748719833525,-430.0,0.00016438,2]
[363409654,1748719833535,-512.08,0.00016438,2]
[363409655,1748719833546,-430.0,0.00016438,2]
[363409656,1748719833555,-430.0,0.00016438,2]
[363409657,1748719833565,-430.0,0.00016438,2]
[363409658,1748719833576,-430.0,0.00016438,2]
[363409659,1748719833586,-430.0,0.00016438,2]
[363409660,1748719833597,-400.0,0.00016438,2]
[363409661,1748719833607,-430.0,0.00016438,2]
[363409662,1748719833618,-430.0,0.00016438,2]
[363409663,1748719833628,-430.0,0.00016438,2]
[363409664,1748719833638,-430.0,0.00016438,2]
[363409665,1748719833648,-430.0,0.00016438,2]
[363409666,1748719833659,-430.0,0.00016438,2]
[363409667,1748719833669,-430.0,0.00016438,2]
[363409668,1748719833679,-430.0,0.00016438,2]
[363409669,1748719833689,-430.0,0.00016438,2]
[363409670,1748719833701,-430.0,0.00016438,2]
[363409671,1748719833711,-430.0,0.00016438,2]
[363409672,1748719833721,-430.0,0.00016438,2]
[363409673,1748719833730,-430.0,0.00016438,2]
[363409674,1748719833740,-430.0,0.00016438,2]
[363409675,1748719833751,-430.0,0.00016438,2]
[363409676,1748719833760,-451.35741054,0.00016438,2]
[363409677,1748719833770,-562.54,0.00016438,2]
[363409678,1748719833781,-430.0,0.00016438,2]
[363409679,1748719833791,-374.11694667,0.00016438,2]
[363409680,1748719833801,-430.0,0.00016438,2]
[363409681,1748719833811,-450.0,0.00016438,2]
[363409682,1748719833821,-430.0,0.00016438,2]
[363409683,1748719833831,-430.0,0.00016438,2]
[363409684,1748719833840,-430.0,0.00016438,2]
[363409685,1748719833850,-451.61966294,0.00016438,2]
[363409686,1748719833860,-430.0,0.00016438,2]
[363409687,1748719833870,-535.39,0.00016438,2]
[363409688,1748719833880,-155.65,0.00016438,2]
[363409689,1748719833891,-450.0,0.00016438,2]
[363409690,1748719833901,-431.92347521,0.00016438,2]
[363409691,1748719833911,-404.74802783,0.00016438,2]
[363409692,1748719833920,-451.55826756,0.00016438,2]
[363409693,1748719833931,-430.0,0.00016438,2]
[363409694,1748719833941,-430.0,0.00016438,2]
[363409695,1748719833951,-430.0,0.00016438,2]
[363409696,1748719833962,-502.6,0.00016438,2]
[363409697,1748719833972,-430.0,0.00016438,2]
[363409698,1748719833983,-450.0,0.00016438,2]
[363409699,1748719833993,-430.0,0.00016438,2]
[363409700,1748719834003,-430.0,0.00016438,2]
[363409701,1748719834014,-430.0,0.00016438,2]
[363409702,1748719834024,-430.0,0.00016438,2]
[363409703,1748719834034,-430.0,0.00016438,2]
[363409704,1748719834045,-285.0,0.00016438,2]
[363409705,1748719834055,-401.48439289,0.00016438,2]
[363409706,1748719834065,-430.0,0.00016438,2]
[363409707,1748719834075,-430.0,0.00016438,2]
[363409708,1748719834086,-430.0,0.00016438,2]
[363409709,1748719834097,-450.0,0.00016438,2]
[363409710,1748719834107,-430.0,0.00016438,2]
[363409711,1748719834117,-662.76,0.00016438,2]
[363409712,1748719834132,-430.0,0.00016438,2]
[363409713,1748719834142,-430.0,0.00016438,2]
[363409714,1748719834152,-450.0,0.00016438,2]
[363409715,1748719834162,-430.0,0.00016438,2]
[363409716,1748719834172,-450.0,0.00016438,2]
[363409717,1748719834182,-570.42658396,0.00016438,2]
[363409718,1748719834191,-430.0,0.00016438,2]
[363409719,1748719834202,-430.0,0.00016438,2]
[363409720,1748719834212,-236.64366156,0.00016438,2]
[363409721,1748719834222,-430.0,0.00016438,2]
[363409722,1748719834232,-450.0,0.00016438,2]
[363409723,1748719834242,-430.0,0.00016438,2]
[363409724,1748719834251,-430.0,0.00016438,2]
[363409725,1748719834262,-430.0,0.00016438,2]
[363409726,1748719834272,-430.0,0.00016438,2]
[363409727,1748719834283,-430.0,0.00016438,2]
[363409728,1748719834292,-430.0,0.00016438,2]
[363409729,1748719834302,-430.0,0.00016438,2]
[363409730,1748719834312,-430.0,0.00016438,2]
[363409731,1748719834322,-430.0,0.00016438,2]
[363409732,1748719834333,-430.0,0.00016438,2]
[363409733,1748719834343,-1251.85,0.00016438,2]
[363409734,1748719834353,-430.0,0.00016438,2]
[363409735,1748719834364,-503.58836565,0.00016438,2]
[363409736,1748719834373,-515.3,0.00016438,2]
[363409737,1748719834384,-1770.71559469,0.00016438,2]
[363409738,1748719834395,-500.0,0.00016711,2]
[363409739,1748719834406,-430.0,0.00016712,2]
[363409740,1748719834415,-430.0,0.00016712,2]
[363409741,1748719834425,-595.53,0.00016712,2]
[363409742,1748719834435,-682.41,0.00016712,2]
[363409743,1748719834445,-430.0,0.00016712,2]
[363409744,1748719834456,-503.98,0.00016712,2]
[363409745,1748719834466,-430.0,0.00016712,2]
[363409746,1748719834477,-430.0,0.00016712,2]
[363409747,1748719834487,-430.0,0.00016712,2]
[363409748,1748719834498,-430.0,0.00016712,2]
[363409749,1748719834509,-430.0,0.00016712,2]
[363409750,1748719834519,-674.67,0.00016712,2]
[363409751,1748719834529,-445.14,0.00016712,2]
[363409752,1748719834538,-430.0,0.00016712,2]
[363409753,1748719834548,-430.0,0.00016712,2]
[363409754,1748719834558,-672.4,0.00016712,2]
[363409755,1748719834568,-880.72,0.00016712,2]
[363409756,1748719834577,-249.93,0.00016712,2]
[363409757,1748719834587,-1040.2,0.00016712,2]
[363409758,1748719834597,-430.0,0.00016712,2]
[363409759,1748719834607,-430.0,0.00016712,2]
[363409760,1748719834617,-430.0,0.00016712,2]
[363409761,1748719834627,-537.55,0.00016712,2]
[363409762,1748719834637,-430.0,0.00016712,2]
[363409763,1748719834646,-430.0,0.00016712,2]
[363409764,1748719834655,-528.28,0.00016712,2]
[363409765,1748719834665,-259.98,0.00016712,2]
[363409766,1748719834674,-495.19,0.00016712,2]
[363409767,1748719834684,-562.54,0.00016712,2]
[363409768,1748719834693,-430.0,0.00016712,2]
[363409769,1748719834703,-502.6,0.00016712,2]
[363409770,1748719834713,-430.0,0.00016712,2]
[363409771,1748719834722,-662.76,0.00016712,2]
[363409772,1748719834733,-430.0,0.00016712,2]
[363409773,1748719834743,-430.0,0.00016712,2]
[363409774,1748719834755,-430.0,0.00016712,2]
[363409775,1748719834765,-1251.85,0.00016712,2]
[363409776,1748719834775,-430.0,0.00016986,2]
[363409777,1748719834785,-430.0,0.00016986,2]
[363409778,1748719834795,-595.53,0.00016986,2]
[363409779,1748719834804,-682.41,0.00016986,2]
[363409780,1748719834814,-430.0,0.00016986,2]
[363409781,1748719834825,-503.98,0.00016986,2]
[363409782,1748719834835,-430.0,0.00016986,2]
[363409783,1748719834845,-430.0,0.00016986,2]
[363409784,1748719834854,-430.0,0.00016986,2]
[363409785,1748719834867,-430.0,0.00016986,2]
[363409786,1748719834879,-430.0,0.00016986,2]
[363409787,1748719834889,-674.67,0.00016986,2]
[363409788,1748719834899,-445.14,0.00016986,2]
[363409789,1748719834911,-430.0,0.00016986,2]
[363409790,1748719834921,-672.4,0.00016986,2]
[363409791,1748719834931,-880.72,0.00016986,2]
[363409792,1748719834942,-1040.2,0.00016986,2]
[363409793,1748719834952,-430.0,0.00016986,2]
[363409794,1748719834963,-430.0,0.00016986,2]
[363409795,1748719834973,-430.0,0.00016986,2]
[363409796,1748719834984,-430.0,0.00016986,2]
[363409797,1748719834993,-182.83,0.00016986,2]
[363409798,1748719835003,-562.54,0.00016986,2]
[363409799,1748719835018,-430.0,0.00016986,2]
[363409800,1748719835027,-502.6,0.00016986,2]
[363409801,1748719835037,-662.76,0.00016986,2]
[363409802,1748719835047,-430.0,0.00016986,2]
[363409803,1748719835057,-430.0,0.00016986,2]
[363409804,1748719835066,-1251.85,0.00016986,2]
[363409805,1748719835076,-3868.825536,0.00017,30]
[363409806,1748719835086,-500.0,0.00017259,2]
[363409807,1748719835096,-430.0,0.0001726,2]
[363409808,1748719835106,-430.0,0.0001726,2]
[363409809,1748719835116,-595.53,0.0001726,2]
[363409810,1748719835134,-682.41,0.0001726,2]
[363409811,1748719835144,-430.0,0.0001726,2]
[363409812,1748719835154,-503.98,0.0001726,2]
[363409813,1748719835164,-430.0,0.0001726,2]
[363409814,1748719835174,-430.0,0.0001726,2]
[363409815,1748719835184,-430.0,0.0001726,2]
[363409816,1748719835193,-430.0,0.0001726,2]
[363409817,1748719835204,-562.78874754,0.0001726,2]
[363409818,1748719835214,-674.67,0.0001726,2]
[363409819,1748719835223,-445.14,0.0001726,2]
[363409820,1748719835235,-430.0,0.0001726,2]
[363409821,1748719835246,-672.4,0.0001726,2]
[363409822,1748719835256,-880.72,0.0001726,2]
[363409823,1748719835267,-1040.2,0.0001726,2]
[363409824,1748719835277,-430.0,0.0001726,2]
[363409825,1748719835287,-430.0,0.0001726,2]
[363409826,1748719835297,-175.73,0.0001726,2]
[363409827,1748719835306,-430.0,0.0001726,2]
[363409828,1748719835316,-562.54,0.0001726,2]
[363409829,1748719835326,-430.0,0.0001726,2]